bitfinex/quotes_BTCUSD_20220731
["timestamp","ask_amount","ask_price","bid_price","bid_amount"]
[1659234874237,0.47027003,23772.0,23767.0,0.01264348]
[1659234874691,0.4488,23772.0,23768.0,0.4365546]
[1659234874916,0.3688,23772.0,23769.0,0.03073155]
[1659234875139,0.39027003,23772.0,23769.0,0.03073155]
[1659234875572,0.05,23771.0,23769.0,0.03073155]
[1659234875803,0.47027003,23772.0,23769.0,0.03073155]
[1659234876035,0.47421164,23772.0,23769.0,0.03073155]
[1659234876485,0.47027003,23772.0,23769.0,0.03073155]
[1659234876714,0.4388,23772.0,23769.0,0.03073155]
[1659234876936,0.3588,23772.0,23769.0,0.03073155]
[1659234877159,0.47408016,23773.0,23769.0,0.03073155]
[1659234877454,0.84978749,23773.0,23770.0,0.00173762]
[1659234877696,0.08,23772.0,23769.0,0.03073155]
[1659234878353,0.08,23772.0,23770.0,8.688e-05]
[1659234878847,0.02147003,23772.0,23770.0,8.688e-05]
[1659234879069,0.84978749,23773.0,23770.0,8.688e-05]
[1659234879293,0.00394161,23772.0,23770.0,8.688e-05]
[1659234879523,0.08,23772.0,23770.0,8.688e-05]
[1659234880413,0.10147003,23772.0,23770.0,8.688e-05]
[1659234880836,0.02147003,23772.0,23770.0,8.688e-05]
[1659234881063,0.84978749,23773.0,23770.0,8.688e-05]
[1659234881347,0.87519913,23773.0,23770.0,8.688e-05]
[1659234881579,0.08,23772.0,23766.0,0.42381575]
[1659234882714,0.10147003,23772.0,23766.0,0.42381575]
[1659234882928,0.8537291,23773.0,23766.0,0.42381575]
[1659234883150,0.32147003,23772.0,23766.0,0.42381575]
[1659234883374,0.02147003,23772.0,23766.0,0.42381575]
[1659234883587,0.08,23772.0,23766.0,0.42381575]
[1659234883810,0.08,23772.0,23767.0,0.303352]
[1659234884024,0.10147003,23772.0,23766.0,0.42381575]
[1659234884243,0.10147003,23772.0,23767.0,0.303352]
[1659234884484,0.10147003,23772.0,23766.0,0.42381575]
[1659234884485,0.08,23772.0,23766.0,0.42381575]
[1659234884679,0.08,23772.0,23767.0,0.303352]
[1659234884906,1.1537291,23773.0,23766.0,0.42381575]
[1659234885402,0.58074919,23771.0,23766.0,0.42381575]
[1659234885624,0.58074919,23771.0,23767.0,0.303352]
[1659234885835,0.58074919,23771.0,23768.0,0.03073155]
[1659234886066,0.88074919,23771.0,23766.0,0.42381575]
[1659234886795,0.58074919,23771.0,23766.0,0.42381575]
[1659234887017,0.60221922,23771.0,23766.0,0.42381575]
[1659234887467,0.60221922,23771.0,23766.0,0.44281575]
[1659234887683,0.58074919,23771.0,23766.0,0.44281575]
[1659234888692,0.3,23770.0,23766.0,0.44281575]
[1659234888864,0.3,23770.0,23766.0,0.42625733]
[1659234889103,0.4387912,23769.0,23766.0,0.40725733]
[1659234889320,0.00394161,23768.0,23766.0,0.4580636]
[1659234889535,0.4387912,23769.0,23766.0,0.42725733]
[1659234890410,0.44273281,23769.0,23766.0,0.42725733]
[1659234890631,0.44273281,23769.0,23766.0,0.40725733]
[1659234891471,0.44273281,23769.0,23766.0,0.48625733]
[1659234892142,0.4387912,23769.0,23766.0,0.48625733]
[1659234892275,0.4387912,23769.0,23767.0,0.03073155]
[1659234893381,0.4387912,23769.0,23767.0,0.079]
[1659234893616,0.44273281,23769.0,23767.0,0.079]
[1659234893844,0.4387912,23769.0,23767.0,0.10973155]
[1659234894305,0.4387912,23769.0,23767.0,0.079]
[1659234894535,0.07860161,23768.0,23767.0,0.068513]
[1659234894759,0.4387912,23769.0,23766.0,0.40725733]
[1659234894963,0.58074919,23771.0,23767.0,0.03073155]
[1659234895192,0.58074919,23771.0,23767.0,0.32077309]
[1659234895406,0.056,23769.0,23767.0,0.32077309]
[1659234895653,0.056,23769.0,23768.0,0.02852997]
[1659234896753,0.00394161,23770.0,23768.0,0.02852997]
[1659234896997,0.58074919,23771.0,23768.0,0.02852997]
[1659234897219,0.58074919,23771.0,23769.0,9.468e-05]
[1659234897438,0.08,23770.0,23769.0,0.03082623]
[1659234897650,0.08394161,23770.0,23768.0,0.02852997]
[1659234897854,0.08,23770.0,23768.0,0.02852997]
[1659234898530,0.08,23770.0,23768.0,0.05926152]
[1659234898731,0.58074919,23771.0,23768.0,0.05926152]
[1659234899664,0.5846908,23771.0,23768.0,0.05926152]
[1659234899884,0.65974919,23771.0,23768.0,0.05926152]
[1659234901084,0.58074919,23771.0,23768.0,0.05926152]
[1659234901287,0.58074919,23771.0,23769.0,0.303352]
[1659234901514,0.00394161,23770.0,23768.0,0.02852997]
[1659234903066,0.58074919,23771.0,23768.0,0.05926152]
[1659234903271,0.00394161,23770.0,23768.0,0.02852997]
[1659234903480,0.08,23770.0,23768.0,0.02852997]
[1659234903692,0.08,23770.0,23767.0,0.45140901]
[1659234903906,0.08,23770.0,23769.0,0.02852997]
[1659234904157,0.08,23770.0,23769.0,0.05926152]
[1659234904364,0.08,23770.0,23769.0,0.02852997]
[1659234904643,0.08,23770.0,23769.0,0.02862465]
[1659234904835,0.58074919,23771.0,23769.0,0.02852997]
[1659234905054,0.5846908,23771.0,23769.0,0.02852997]
[1659234905496,0.6636908,23771.0,23769.0,0.02852997]
[1659234905715,0.65974919,23771.0,23769.0,0.05926152]
[1659234905933,0.65974919,23771.0,23769.0,0.02852997]
[1659234906795,0.58074919,23771.0,23769.0,0.02852997]
[1659234907276,0.58074919,23771.0,23770.0,0.05926152]
[1659234907486,0.65974919,23771.0,23770.0,0.05926152]
[1659234907691,0.65974919,23771.0,23770.0,0.02852997]
[1659234907977,0.65974919,23771.0,23767.0,0.85866634]
[1659234908182,0.65974919,23771.0,23768.0,0.03073155]
[1659234908897,0.58074919,23771.0,23769.0,0.40725733]
[1659234909117,0.58074919,23771.0,23770.0,0.02852997]
[1659234909332,0.58074919,23771.0,23770.0,0.09278984]
[1659234909545,0.65974919,23771.0,23770.0,0.09278984]
[1659234910862,0.58074919,23771.0,23770.0,0.09278984]
[1659234911562,0.58074919,23771.0,23770.0,0.16978984]
[1659234911817,0.58074919,23771.0,23770.0,0.88039917]
[1659234912469,0.58074919,23771.0,23770.0,0.57704717]
[1659234912693,0.58074919,23771.0,23770.0,0.50004717]
[1659234912909,0.58074919,23771.0,23770.0,0.06425987]
[1659234913577,0.58074919,23771.0,23770.0,0.10825987]
[1659234914664,0.5846908,23771.0,23770.0,0.10825987]
[1659234914908,0.5846908,23771.0,23770.0,0.06415896]
[1659234915556,0.5846908,23771.0,23770.0,0.10815896]
[1659234916287,1.75693971,23771.0,23770.0,0.10815896]
[1659234916502,1.80226206,23771.0,23770.0,0.10815896]
[1659234916730,1.35693971,23771.0,23770.0,0.10815896]
[1659234916974,1.75693971,23771.0,23770.0,0.06415896]
[1659234917487,1.79493971,23771.0,23770.0,0.06415896]
[1659234917696,1.5095122,23771.0,23770.0,0.06415896]
[1659234918353,1.5595122,23771.0,23770.0,0.06415896]
[1659234918568,1.54250238,23771.0,23770.0,0.06415896]
[1659234918822,1.50450238,23771.0,23770.0,0.06415896]
[1659234919043,1.37538971,23771.0,23770.0,0.06415896]
[1659234919274,1.90793218,23771.0,23770.0,0.06415896]
[1659234919482,1.60538218,23771.0,23770.0,0.06415896]
[1659234919728,1.55538218,23771.0,23770.0,0.06415896]
[1659234920868,1.47638218,23771.0,23770.0,0.06415896]
[1659234921547,1.55538218,23771.0,23770.0,0.06415896]
[1659234921766,1.5219406,23771.0,23770.0,0.06415896]
[1659234922427,1.55538218,23771.0,23770.0,0.06415896]
[1659234922850,1.47638218,23771.0,23770.0,0.06415896]
[1659234923532,1.55538218,23771.0,23770.0,0.06415896]
[1659234924700,1.47638218,23771.0,23770.0,0.06415896]
[1659234925101,1.52638218,23771.0,23770.0,0.06415896]
[1659234925325,1.47638218,23771.0,23770.0,0.06415896]
[1659234925534,1.55538218,23771.0,23770.0,0.06415896]
[1659234927528,1.63438218,23771.0,23770.0,0.06415896]
[1659234928859,1.47638218,23771.0,23770.0,0.06415896]
[1659234929540,1.55538218,23771.0,23770.0,0.06415896]
[1659234930244,1.60538218,23771.0,23770.0,0.06415896]
[1659234930481,1.55538218,23771.0,23770.0,0.06415896]
[1659234930911,1.47638218,23771.0,23770.0,0.06415896]
[1659234931634,1.55538218,23771.0,23770.0,0.06415896]
[1659234931843,1.55526888,23771.0,23770.0,0.06415896]
[1659234932949,1.47626888,23771.0,23770.0,0.06415896]
[1659234933587,1.55526888,23771.0,23770.0,0.06415896]
[1659234934865,1.47626888,23771.0,23770.0,0.06415896]
[1659234936018,1.80682641,23771.0,23770.0,0.06415896]
[1659234936249,1.82527641,23771.0,23770.0,0.06415896]
[1659234936477,1.89927641,23771.0,23770.0,0.06415896]
[1659234936704,2.32886985,23771.0,23770.0,0.06415896]
[1659234936958,1.89927641,23771.0,23770.0,0.06415896]
[1659234937418,0.03344158,23763.0,23759.0,0.2074]
[1659234937641,0.64221416,23762.0,23759.0,0.2074]
[1659234937893,0.64221416,23762.0,23754.0,0.3101]
[1659234938120,0.03344158,23760.0,23755.0,0.40725733]
[1659234938831,0.05491161,23760.0,23755.0,0.40725733]
[1659234939066,0.03344158,23760.0,23756.0,0.303352]
[1659234939303,0.03344158,23760.0,23757.0,0.33408355]
[1659234939604,0.11244158,23760.0,23758.0,0.303352]
[1659234939931,0.11244158,23760.0,23757.0,0.03081493]
[1659234940150,0.11244158,23760.0,23758.0,0.303352]
[1659234940372,0.11244158,23760.0,23757.0,0.03081493]
[1659234940623,0.11244158,23760.0,23756.0,0.82713983]
[1659234940624,0.05,23759.0,23758.0,0.303352]
[1659234940879,0.03344158,23760.0,23756.0,0.40725733]
[1659234941335,0.00394161,23759.0,23756.0,0.40725733]
[1659234941562,0.00394161,23759.0,23758.0,0.03]
[1659234941799,0.03344158,23760.0,23758.0,0.03]
[1659234942252,0.00394161,23759.0,23758.0,0.03]
[1659234942729,0.03344158,23760.0,23756.0,0.40725733]
[1659234942963,0.05491161,23760.0,23757.0,0.03081493]
[1659234943181,0.05394161,23759.0,23756.0,0.40725733]
[1659234943465,0.11344158,23760.0,23756.0,0.40725733]
[1659234943700,0.13491161,23760.0,23756.0,0.40725733]
[1659234944152,0.05,23759.0,23756.0,0.40725733]
[1659234944373,0.11344158,23760.0,23756.0,0.40725733]
[1659234944599,0.11344158,23760.0,23757.0,0.303352]
[1659234944814,0.03344158,23760.0,23758.0,0.303352]
[1659234945045,0.03344158,23760.0,23758.0,0.03073155]
[1659234945502,0.10744158,23760.0,23758.0,0.04073155]
[1659234945951,0.10744158,23760.0,23759.0,0.02852997]
[1659234946185,0.074,23760.0,23759.0,0.33188197]
[1659234946411,0.074,23760.0,23759.0,0.7391393]
[1659234946661,0.074,23760.0,23759.0,0.75178278]
[1659234946887,0.3,23766.0,23759.0,0.44843078]
[1659234947107,0.3,23766.0,23759.0,0.43586247]
[1659234947108,0.70725733,23766.0,23759.0,0.43586247]
[1659234947379,0.70725733,23766.0,23759.0,0.4357873]
[1659234947380,0.03344158,23764.0,23759.0,0.4357873]
[1659234947602,0.35491161,23764.0,23759.0,0.4357873]
[1659234947827,0.33344158,23764.0,23759.0,0.4357873]
[1659234948521,0.03344158,23762.0,23757.0,0.43952015]
[1659234948746,0.03344158,23759.0,23757.0,0.43952015]
[1659234948982,0.03344158,23759.0,23757.0,0.47032688]
[1659234949209,0.03344158,23759.0,23757.0,0.43952015]
[1659234949445,0.03344158,23759.0,23757.0,0.51852015]
[1659234949932,0.00394161,23759.0,23757.0,0.51852015]
[1659234950172,0.46117169,23762.0,23757.0,0.54932688]
[1659234950642,0.46117169,23762.0,23757.0,0.5492517]
[1659234950875,0.46117169,23762.0,23757.0,0.43952015]
[1659234951569,0.54017169,23762.0,23757.0,0.43952015]
[1659234952558,0.59017169,23762.0,23757.0,0.43952015]
[1659234952761,0.51117169,23762.0,23757.0,0.43952015]
[1659234953204,0.46117169,23762.0,23757.0,0.43952015]
[1659234953404,0.54017169,23762.0,23757.0,0.43952015]
[1659234954983,0.46117169,23762.0,23757.0,0.43952015]
[1659234955584,0.54017169,23762.0,23757.0,0.43952015]
[1659234956949,0.50673011,23762.0,23757.0,0.43952015]
[1659234957179,0.079,23762.0,23757.0,0.43952015]
[1659234957405,0.91766333,23764.0,23757.0,0.43952015]
[1659234957642,0.079,23762.0,23757.0,0.43952015]
[1659234957879,0.07891371,23762.0,23758.0,0.40725733]
[1659234958341,0.07891371,23762.0,23759.0,0.03073155]
[1659234958556,0.07891371,23762.0,23759.0,0.43798888]
[1659234958813,0.3,23764.0,23759.0,0.43798888]
[1659234959032,0.05,23763.0,23759.0,0.43798888]
[1659234959257,0.32147003,23764.0,23759.0,0.43798888]
[1659234959471,0.40047003,23764.0,23759.0,0.43798888]
[1659234960359,0.10047003,23764.0,23759.0,0.43798888]
[1659234960814,0.02147003,23764.0,23759.0,0.88814232]
[1659234961483,0.10047003,23764.0,23759.0,0.88814232]
[1659234962930,0.02147003,23764.0,23759.0,0.88814232]
[1659234963595,0.05847003,23764.0,23759.0,0.88814232]
[1659234964044,0.05847003,23764.0,23759.0,0.85741077]
[1659234964710,0.02147003,23764.0,23759.0,0.85741077]
[1659234965192,0.03344158,23762.0,23759.0,0.85741077]
[1659234965414,0.03738319,23762.0,23759.0,0.85741077]
[1659234965851,0.03738319,23762.0,23760.0,0.03088594]
[1659234966114,0.03738319,23762.0,23759.0,0.85741077]
[1659234966335,0.05885322,23762.0,23759.0,0.85741077]
[1659234966811,0.03344158,23762.0,23759.0,0.85741077]
[1659234967034,0.03344158,23762.0,23760.0,0.03073155]
[1659234967262,0.05885322,23762.0,23759.0,0.85741077]
[1659234967488,0.13391161,23762.0,23759.0,0.85741077]
[1659234968163,0.05,23761.0,23760.0,0.03073155]
[1659234968409,0.13391161,23762.0,23759.0,0.85741077]
[1659234968629,0.10047003,23762.0,23759.0,0.85741077]
[1659234968852,0.02147003,23762.0,23759.0,0.85741077]
[1659234969125,0.3,23765.0,23760.0,0.03073155]
[1659234969339,0.02147003,23765.0,23760.0,0.43798888]
[1659234969571,0.076,23762.0,23760.0,0.43798888]
[1659234969846,0.076,23762.0,23761.0,0.68188197]
[1659234970064,0.076,23762.0,23761.0,0.33188197]
[1659234970513,0.07994161,23762.0,23761.0,0.02852997]
[1659234970515,0.076,23762.0,23761.0,0.02852997]
[1659234970739,0.3,23765.0,23760.0,0.43798888]
[1659234971404,0.35747003,23765.0,23760.0,0.43798888]
[1659234971653,0.036,23765.0,23760.0,0.43798888]
[1659234973338,0.43198028,23766.0,23760.0,0.43798888]
[1659234973561,0.38,23765.0,23760.0,0.43798888]
[1659234973792,0.08,23765.0,23760.0,0.43798888]
[1659234974931,0.43198028,23766.0,23760.0,0.43798888]
[1659234975660,0.08,23765.0,23760.0,0.43798888]
[1659234976361,0.38,23765.0,23760.0,0.40725733]
[1659234976806,0.3,23765.0,23760.0,0.40725733]
[1659234977498,0.336,23765.0,23760.0,0.40725733]
[1659234977732,0.036,23765.0,23760.0,0.40725733]
[1659234977947,0.336,23765.0,23760.0,0.40725733]
[1659234978909,0.3,23765.0,23760.0,0.40725733]
[1659234979394,0.03344158,23764.0,23760.0,0.40725733]
[1659234979627,0.00394161,23763.0,23760.0,0.40725733]
[1659234979840,0.02541164,23763.0,23760.0,0.40725733]
[1659234980060,0.00394161,23763.0,23760.0,0.40725733]
[1659234980518,0.02541164,23763.0,23760.0,0.40725733]
[1659234980739,0.05,23762.0,23760.0,0.40725733]
[1659234980962,0.02541164,23763.0,23760.0,0.40725733]
[1659234981670,0.05,23762.0,23760.0,0.40725733]
[1659234981940,0.12147003,23761.0,23759.0,0.40725733]
[1659234982156,0.43983156,23763.0,23756.0,1.41204398]
[1659234982157,0.02147003,23762.0,23756.0,1.41204398]
[1659234982392,0.84314728,23763.0,23756.0,1.41204398]
[1659234982871,0.08,23762.0,23756.0,1.41204398]
[1659234983093,0.08,23762.0,23756.0,0.84484398]
[1659234983544,0.08,23762.0,23756.0,0.84475662]
[1659234984442,1.14314728,23763.0,23756.0,0.84475662]
[1659234984876,1.14314728,23763.0,23756.0,0.89575662]
[1659234985589,1.14314728,23763.0,23756.0,0.84475662]
[1659234986338,0.03159,23762.0,23756.0,0.84475662]
[1659234986562,1.22314728,23763.0,23756.0,0.84475662]
[1659234987700,1.14314728,23763.0,23756.0,0.84475662]
[1659234988391,1.22314728,23763.0,23756.0,0.84475662]
[1659234988835,0.92314728,23763.0,23756.0,0.84475662]
[1659234989053,0.48725733,23763.0,23757.0,0.61991042]
[1659234989324,0.05,23762.0,23759.0,0.41957496]
[1659234989569,0.08,23763.0,23760.0,0.74134088]
[1659234989795,0.3,23765.0,23760.0,0.43798888]
[1659234990485,0.34,23765.0,23760.0,0.43798888]
[1659234991859,0.3,23765.0,23760.0,0.43798888]
[1659234992082,0.32147003,23765.0,23760.0,0.43798888]
[1659234992528,0.36147003,23765.0,23760.0,0.43798888]
[1659234993022,0.36147003,23765.0,23760.0,0.40725733]
[1659234993708,0.32147003,23765.0,23760.0,0.40725733]
[1659234994606,0.05947003,23765.0,23760.0,0.40725733]
[1659234995058,0.038,23765.0,23760.0,0.40725733]
[1659234995739,0.74753584,23767.0,23760.0,0.40725733]
[1659234996008,1.15479317,23767.0,23760.0,0.40725733]
[1659234996457,1.23379317,23767.0,23760.0,0.40725733]
[1659234997157,1.26538317,23767.0,23760.0,0.40725733]
[1659234997370,1.23379317,23767.0,23760.0,0.40725733]
[1659234997808,1.15479317,23767.0,23760.0,0.40725733]
[1659234998492,1.23379317,23767.0,23760.0,0.40725733]
[1659234999379,0.93379317,23767.0,23760.0,0.40725733]
[1659234999618,1.23379317,23767.0,23760.0,0.40725733]
[1659234999832,1.15479317,23767.0,23760.0,0.40725733]
[1659235000508,1.23379317,23767.0,23760.0,0.40725733]
[1659235001764,1.15479317,23767.0,23760.0,0.40725733]
[1659235002451,1.23379317,23767.0,23760.0,0.40725733]
[1659235003807,1.15479317,23767.0,23760.0,0.40725733]
[1659235004502,1.23379317,23767.0,23760.0,0.40725733]
[1659235005840,1.15479317,23767.0,23760.0,0.40725733]
[1659235006301,0.74753584,23767.0,23760.0,0.40725733]
[1659235006531,0.82653584,23767.0,23760.0,0.40725733]
[1659235006979,0.8479295,23767.0,23760.0,0.40725733]
[1659235007702,0.7689295,23767.0,23760.0,0.40725733]
[1659235008632,0.8169295,23767.0,23760.0,0.40725733]
[1659235009765,0.7689295,23767.0,23760.0,0.40725733]
[1659235013313,0.8169295,23767.0,23760.0,0.40725733]
[1659235013805,0.8649295,23767.0,23760.0,0.40725733]
[1659235014724,0.01052099,23766.0,23760.0,0.40725733]
[1659235015390,0.09699102,23766.0,23760.0,0.40725733]
[1659235017242,0.03199102,23766.0,23760.0,0.40725733]
[1659235017471,0.07552099,23766.0,23760.0,0.40725733]
[1659235018915,0.01052099,23766.0,23760.0,0.40725733]
[1659235019591,0.07852099,23766.0,23760.0,0.40725733]
[1659235020629,0.01052099,23766.0,23760.0,0.40725733]
[1659235021482,0.04652099,23766.0,23760.0,0.40725733]
[1659235022351,0.3,23765.0,23760.0,0.40725733]
[1659235023026,0.32147003,23765.0,23760.0,0.40725733]
[1659235023225,0.02147003,23765.0,23760.0,0.40725733]
[1659235023438,0.01052099,23764.0,23760.0,0.40725733]
[1659235023646,0.01052099,23764.0,23761.0,0.03073155]
[1659235023856,0.01052099,23764.0,23762.0,0.40725733]
[1659235024126,0.0144626,23764.0,23762.0,0.40725733]
[1659235024774,0.01052099,23764.0,23762.0,0.40725733]
[1659235025408,0.03952099,23764.0,23762.0,0.48425733]
[1659235026541,0.0434626,23764.0,23762.0,0.48425733]
[1659235028734,0.0144626,23764.0,23762.0,0.40725733]
[1659235028937,0.01052099,23764.0,23762.0,0.40725733]
[1659235029802,0.03952099,23764.0,23762.0,0.48425733]
[1659235031134,0.01052099,23764.0,23762.0,0.40725733]
[1659235031681,0.03952099,23764.0,23762.0,0.48425733]
[1659235031778,0.03945999,23764.0,23762.0,0.48425733]
[1659235032434,0.0434016,23764.0,23762.0,0.48425733]
[1659235032921,0.01045999,23764.0,23762.0,0.43798888]
[1659235033142,0.01045999,23764.0,23762.0,0.40725733]
[1659235033387,0.01045999,23764.0,23763.0,1.12297997]
[1659235033619,0.01045999,23764.0,23763.0,2.42365889]
[1659235033844,9.99e-06,23764.0,23763.0,2.84088757]
[1659235034070,9.99e-06,23764.0,23763.0,3.17298237]
[1659235034290,0.58063589,23771.0,23770.0,0.77852997]
[1659235034517,0.58063589,23771.0,23770.0,1.4891393]
[1659235034752,0.58063589,23771.0,23770.0,0.76987085]
[1659235034982,0.58063589,23771.0,23770.0,0.78251433]
[1659235035450,0.58063589,23771.0,23770.0,0.81451433]
[1659235036325,0.58063589,23771.0,23770.0,0.7711393]
[1659235037243,0.58063589,23771.0,23770.0,0.7391393]
[1659235037458,0.58063589,23771.0,23770.0,0.80287085]
[1659235038162,0.58063589,23771.0,23770.0,0.39561352]
[1659235038393,0.58063589,23771.0,23770.0,0.336352]
[1659235038624,0.61407747,23771.0,23770.0,0.06373155]
[1659235038853,0.61407747,23771.0,23765.0,0.572]
[1659235039079,0.61407747,23771.0,23766.0,0.71060933]
[1659235039343,0.61407747,23771.0,23767.0,0.71060933]
[1659235039562,0.05,23770.0,23768.0,0.03073155]
[1659235039776,0.61407747,23771.0,23769.0,0.303352]
[1659235040005,0.6355475,23771.0,23765.0,0.029]
[1659235040226,0.03344158,23769.0,23765.0,0.43625733]
[1659235040445,0.03344158,23766.0,23765.0,0.029]
[1659235040661,0.44069891,23769.0,23762.0,0.70725733]
[1659235041310,0.44069891,23769.0,23762.0,0.40725733]
[1659235041533,0.44069891,23769.0,23762.0,0.48625733]
[1659235041534,0.47149701,23765.0,23762.0,0.48625733]
[1659235041787,0.00394161,23764.0,23762.0,0.48625733]
[1659235042455,0.00394161,23764.0,23763.0,0.303352]
[1659235042669,0.00394161,23764.0,23762.0,0.48625733]
[1659235042894,0.47149701,23765.0,23762.0,0.40725733]
[1659235043368,0.47149701,23765.0,23762.0,0.45325733]
[1659235043583,0.49296704,23765.0,23762.0,0.45325733]
[1659235043802,0.05,23764.0,23762.0,0.48398888]
[1659235044043,0.49296704,23765.0,23763.0,0.303352]
[1659235044250,0.49296704,23765.0,23762.0,0.48398888]
[1659235044488,0.02147003,23765.0,23762.0,0.48398888]
[1659235044703,0.03344158,23768.0,23763.0,0.303352]
[1659235044918,0.82880356,23769.0,23762.0,0.43798888]
[1659235045573,0.82880356,23769.0,23763.0,0.003]
[1659235045814,0.86039356,23769.0,23763.0,0.003]
[1659235046683,0.86039356,23769.0,23762.0,0.43798888]
[1659235047120,0.82880356,23769.0,23762.0,0.43798888]
[1659235047337,0.42154623,23769.0,23763.0,0.40725733]
[1659235047555,0.44301626,23769.0,23763.0,0.40725733]
[1659235048665,0.03344158,23768.0,23764.0,0.44969832]
[1659235048883,0.03344158,23768.0,23765.0,0.43798888]
[1659235049598,0.42154623,23769.0,23765.0,0.43798888]
[1659235050048,0.02147003,23769.0,23765.0,0.43798888]
[1659235050278,0.98063589,23771.0,23766.0,0.303352]
[1659235050489,0.98063589,23771.0,23765.0,0.43798888]
[1659235051199,0.43367096,23770.0,23765.0,0.40725733]
[1659235051427,0.43367096,23770.0,23765.0,0.41325733]
[1659235052798,0.43367096,23770.0,23764.0,0.44969832]
[1659235053021,0.43367096,23770.0,23764.0,0.85695565]
[1659235053237,0.90594987,23770.0,23764.0,0.44969832]
[1659235054203,0.92436987,23770.0,23764.0,0.44969832]
[1659235054420,0.87436987,23770.0,23764.0,0.44969832]
[1659235057234,0.86936987,23770.0,23764.0,0.44969832]
[1659235058359,0.90094987,23770.0,23764.0,0.44969832]
[1659235058581,0.03344158,23767.0,23760.0,0.211]
[1659235058803,0.03344158,23767.0,23761.0,0.85835475]
[1659235059019,0.03344158,23767.0,23762.0,0.40725733]
[1659235059251,0.03344158,23764.0,23758.0,0.631033]
[1659235059492,0.03344158,23761.0,23758.0,1.03829033]
[1659235059712,0.03344158,23761.0,23756.0,0.7148061]
[1659235059713,0.00394161,23760.0,23756.0,0.7148061]
[1659235060190,0.02147003,23760.0,23757.0,0.303352]
[1659235060412,0.02147003,23760.0,23756.0,0.7148061]
[1659235060413,0.8955653,23763.0,23758.0,0.303352]
[1659235060637,0.8955653,23763.0,23756.0,0.4148061]
[1659235060638,0.40725733,23762.0,23756.0,0.4148061]
[1659235061580,0.40725733,23762.0,23756.0,0.4938061]
[1659235061808,0.02147003,23762.0,23757.0,1.31060933]
[1659235062034,0.4358348,23768.0,23760.0,0.4210798]
[1659235062267,0.40725733,23767.0,23761.0,0.02852997]
[1659235062555,0.84309213,23768.0,23761.0,0.4357873]
[1659235063469,0.10047003,23768.0,23762.0,0.40725733]
[1659235063699,0.079,23768.0,23764.0,0.45256219]
[1659235063919,0.079,23768.0,23765.0,0.03073155]
[1659235065318,1.57623589,23771.0,23765.0,0.03073155]
[1659235065319,0.96633589,23771.0,23765.0,0.03073155]
[1659235065541,0.08,23768.0,23765.0,1.08798888]
[1659235065766,0.08,23768.0,23767.0,0.92297997]
[1659235065991,0.08,23768.0,23767.0,0.80014772]
[1659235066911,0.58063589,23771.0,23767.0,0.80014772]
[1659235067127,0.58063589,23771.0,23768.0,0.71060933]
[1659235067338,0.58063589,23771.0,23768.0,0.43798888]
[1659235067339,0.60210592,23771.0,23768.0,0.43798888]
[1659235067548,0.60210592,23771.0,23769.0,0.303352]
[1659235067795,0.58063589,23771.0,23768.0,0.43798888]
[1659235068718,0.60210592,23771.0,23768.0,0.43798888]
[1659235069182,0.58063589,23771.0,23769.0,0.303352]
[1659235069410,0.58063589,23771.0,23768.0,0.47498888]
[1659235070074,0.05,23770.0,23768.0,0.47498888]
[1659235070323,0.58063589,23771.0,23768.0,0.47498888]
[1659235070541,0.05,23770.0,23768.0,0.47498888]
[1659235070788,0.58063589,23771.0,23769.0,0.303352]
[1659235071004,0.58063589,23771.0,23768.0,0.43798888]
[1659235071219,0.60210592,23771.0,23768.0,0.43798888]
[1659235071708,0.58063589,23771.0,23768.0,0.43798888]
[1659235072383,0.05,23770.0,23769.0,0.037]
[1659235072832,0.60210592,23771.0,23769.0,0.037]
[1659235073488,0.60210592,23771.0,23769.0,0.074]
[1659235073701,0.60210592,23771.0,23769.0,0.037]
[1659235073928,0.58063589,23771.0,23769.0,0.44425733]
[1659235074382,0.60210592,23771.0,23769.0,0.44425733]
[1659235074820,0.60210592,23771.0,23770.0,0.303352]
[1659235075053,0.58063589,23771.0,23769.0,0.40725733]
[1659235075291,0.58063589,23771.0,23766.0,0.45986531]
[1659235075292,0.60604753,23771.0,23766.0,0.45986531]
[1659235075507,0.60604753,23771.0,23770.0,0.037]
[1659235076191,0.55604753,23771.0,23770.0,0.037]
[1659235076956,0.55604753,23771.0,23766.0,0.45986531]
[1659235077414,0.55604753,23771.0,23770.0,0.043]
[1659235078590,0.55604753,23771.0,23766.0,0.45986531]
[1659235079441,0.63104753,23771.0,23766.0,0.48686531]
[1659235081035,0.55604753,23771.0,23766.0,0.45986531]
[1659235081675,0.03344158,23770.0,23766.0,0.45986531]
[1659235082241,0.03344158,23770.0,23766.0,0.50486531]
[1659235082611,0.03344158,23770.0,23767.0,0.03073155]
[1659235083060,0.53063589,23771.0,23767.0,0.03073155]
[1659235083274,0.53063589,23771.0,23768.0,0.59337159]
[1659235083487,0.53063589,23771.0,23768.0,0.29001959]
[1659235083976,0.53063589,23771.0,23767.0,0.09473155]
[1659235084422,0.55210592,23771.0,23767.0,0.09473155]
[1659235084911,0.55210592,23771.0,23768.0,0.30354537]
[1659235085130,0.55210592,23771.0,23768.0,0.00019337]
[1659235085345,0.05,23770.0,23768.0,0.00019337]
[1659235085566,0.60263589,23771.0,23768.0,0.30354537]
[1659235085781,0.62410592,23771.0,23769.0,0.303352]
[1659235086004,0.60263589,23771.0,23768.0,0.00019337]
[1659235086227,0.60263589,23771.0,23769.0,0.03073155]
[1659235086902,0.53063589,23771.0,23769.0,0.03073155]
[1659235088282,0.53063589,23771.0,23768.0,0.00019337]
[1659235088283,0.5345775,23771.0,23768.0,0.00019337]
[1659235088502,0.53063589,23771.0,23769.0,0.03073155]
[1659235088966,0.53063589,23771.0,23768.0,0.00019337]
[1659235089393,0.60263589,23771.0,23769.0,0.008]
[1659235089616,0.62410592,23771.0,23769.0,0.03873155]
[1659235090296,0.62804753,23771.0,23769.0,0.03873155]
[1659235090551,0.62804753,23771.0,23769.0,0.008]
[1659235090787,0.55210592,23771.0,23769.0,0.03073155]
[1659235091008,0.55210592,23771.0,23768.0,0.00019337]
[1659235091241,0.55604753,23771.0,23766.0,0.45986531]
[1659235091943,0.12147003,23770.0,23769.0,0.008]
[1659235092156,0.6065775,23771.0,23769.0,0.008]
[1659235093110,0.5345775,23771.0,23766.0,0.45986531]
[1659235093324,0.5345775,23771.0,23767.0,0.303352]
[1659235093542,0.5345775,23771.0,23768.0,0.03073155]
[1659235093773,0.6065775,23771.0,23768.0,0.03073155]
[1659235093980,0.6065775,23771.0,23767.0,0.303352]
[1659235094195,0.6065775,23771.0,23766.0,0.46786531]
[1659235094844,0.60263589,23771.0,23767.0,0.303352]
[1659235095058,0.60263589,23771.0,23766.0,0.45986531]
[1659235095059,0.53063589,23771.0,23766.0,0.45986531]
[1659235095285,0.60263589,23771.0,23767.0,0.311352]
[1659235095502,0.60263589,23771.0,23767.0,0.008]